fUST/lending_fUST_20251011
["ID","MTS","AMOUNT","RATE_DAILY","PERIOD"]
[390696456,1760124638849,-500.0,0.00025999,2]
[390696458,1760124638858,-635.14095095,0.00025999,2]
[390696460,1760124638867,-593.725816,0.00025999,2]
[390696462,1760124638877,-3644.73378513,0.00026,7]
[390696902,1760124643535,-507.52775221,0.00023,10]
[390696905,1760124643547,-1044.0,0.00023,10]
[390696907,1760124643558,-3300.75224779,0.00023,10]
[390696909,1760124643567,-1061.6151613,0.00026,7]
[390696911,1760124643577,-3533.87695805,0.00026,30]
[390696913,1760124643587,-290.3,0.00026,30]
[390696915,1760124643598,-3899.99999599,0.00026,30]
[390696917,1760124643610,-2695.00008,0.00026,30]
[390696919,1760124643621,-12600.0,0.00026,30]
[390696922,1760124643632,-593.93068211,0.00026,30]
[390696924,1760124643643,-502.55776426,0.00026,30]
[390696926,1760124643655,-2810.09616549,0.00026,30]
[390696945,1760124643852,-14027.64026997,0.00026,30]
[390696947,1760124643863,-26900.0001,0.00026,30]
[390696950,1760124643875,-44823.61362319,0.00026,30]
[390696952,1760124643884,-810.50737819,0.00026019,2]
[390696954,1760124643894,-200.0,0.000261,7]
[390696955,1760124643903,-192.47399803,0.0002616,2]
[390696957,1760124643912,-2080.3,0.00026199,2]
[390696959,1760124643921,-1323.04323636,0.00026384,2]
[390696961,1760124643930,-980.0,0.00026402,2]
[390696963,1760124643939,-2159.0,0.00026402,2]
[390696965,1760124643948,-630.0,0.00026402,2]
[390696967,1760124643958,-411.0,0.00026402,2]
[390696969,1760124643967,-1000.0,0.00026521,2]
[390696971,1760124643980,-1000.0,0.00026521,2]
[390696974,1760124643989,-1000.0,0.00026521,2]
[390696976,1760124643998,-440.07346646,0.00026521,2]
[390696978,1760124644008,-500.0,0.00026521,2]
[390696980,1760124644017,-163.0,0.0002663,21]
[390696982,1760124644027,-1323.04323636,0.00026645,2]
[390696984,1760124644036,-156.49,0.0002667,7]
[390696986,1760124644045,-723.334028,0.00026676,2]
[390696988,1760124644054,-622.927,0.00026718,14]
[390696990,1760124644063,-319.0,0.00026718,2]
[390696992,1760124644072,-319.0,0.00026776,2]
[390696994,1760124644081,-2889.82,0.00026837,2]
[390696996,1760124644091,-319.0,0.00026913,7]
[390696998,1760124644100,-156.15759928,0.00026973,2]
[390697000,1760124644109,-500.0,0.00026973,2]
[390697002,1760124644118,-500.0,0.00026973,2]
[390697004,1760124644127,-507.73770903,0.00026973,2]
[390697006,1760124644138,-500.0,0.00026973,2]
[390697008,1760124644147,-500.0,0.00026973,2]
[390697010,1760124644157,-500.0,0.00026973,2]
[390697012,1760124644167,-200.29774002,0.00026973,2]
[390697014,1760124644176,-200.70760529,0.00026973,2]
[390697016,1760124644185,-501.52986727,0.00026973,2]
[390697018,1760124644195,-500.0,0.00026973,2]
[390697020,1760124644204,-200.04054909,0.00026973,2]
[390697022,1760124644214,-85750.92949394,0.00027,30]
[390697024,1760124644226,-3410.97742788,0.00027,5]
[390697026,1760124644235,-600.0,0.00027,14]
[390697028,1760124644245,-319.0,0.0002702,2]
[390697030,1760124644254,-135.19604161,0.0002704,2]
[390697033,1760124644270,-183.80395839,0.0002704,2]
[390697035,1760124644280,-161.82045969,0.00027055,2]
[390697037,1760124644292,-810.50737819,0.00027058,2]
[390697039,1760124644301,-319.0,0.00027059,7]
[390697041,1760124644312,-1000.0,0.00027068,2]
[390697043,1760124644321,-500.0,0.00027068,2]
[390697045,1760124644331,-517.12563244,0.00027068,2]
[390697047,1760124644341,-600.0,0.00027077,2]
[390697049,1760124644350,-319.0,0.00027083,2]
[390697051,1760124644359,-200.0,0.000271,7]
[390697053,1760124644368,-276710.553018,0.00027158,2]
[390697055,1760124644378,-9135.69390941,0.00027158,2]
[390697056,1760124644387,-151.0,0.00027158,7]
[390697057,1760124644396,-151.0,0.00027158,7]
[390697058,1760124644406,-151.0,0.00027158,7]
[390697059,1760124644415,-151.0,0.00027158,7]
[390697060,1760124644424,-151.0,0.00027158,7]
[390697061,1760124644434,-151.0,0.00027158,7]
[390697062,1760124644443,-151.0,0.00027158,7]
[390697063,1760124644452,-151.0,0.00027158,7]
[390697064,1760124644462,-216.69094,0.00027158,7]
[390697065,1760124644475,-288.200192,0.00027158,7]
[390697066,1760124644484,-151.0,0.00027158,7]
[390697067,1760124644494,-151.0,0.00027158,7]
[390697069,1760124644504,-150.0,0.00027173,2]
[390697071,1760124644514,-432.45728421,0.00027173,2]
[390697073,1760124644523,-500.0,0.00027173,2]
[390697075,1760124644532,-500.0,0.00027173,2]
[390697077,1760124644541,-500.0,0.00027173,2]
[390697079,1760124644550,-449.93089038,0.00027173,2]
[390697081,1760124644559,-500.0,0.00027173,2]
[390697083,1760124644568,-527.34370932,0.00027173,2]
[390697085,1760124644578,-500.0,0.00027173,2]
[390697087,1760124644587,-500.0,0.00027173,2]
[390697089,1760124644597,-500.0,0.00027173,2]
[390697091,1760124644608,-500.0,0.00027173,2]
[390697093,1760124644617,-500.0,0.00027173,2]
[390697095,1760124644626,-500.21925851,0.00027173,2]
[390697097,1760124644635,-628.56845849,0.00027173,2]
[390697099,1760124644643,-500.0,0.00027173,2]
[390697101,1760124644653,-500.16391042,0.00027173,2]
[390697103,1760124644662,-518.22182432,0.00027173,2]
[390697105,1760124644671,-500.10989257,0.00027173,2]
[390697107,1760124644681,-500.0,0.00027173,2]
[390697109,1760124644690,-500.0,0.00027173,2]
[390697111,1760124644702,-175.28778743,0.00027173,2]
[390697112,1760124644711,-500.0,0.00027173,2]
[390697114,1760124644727,-510.76695873,0.00027173,2]
[390697116,1760124644736,-500.0,0.00027173,2]
[390697118,1760124644747,-500.0,0.00027173,2]
[390697120,1760124644756,-164.01418155,0.00027173,2]
[390697122,1760124644765,-572.89338888,0.00027173,2]
[390697124,1760124644774,-500.0,0.00027173,2]
[390697126,1760124644783,-500.0,0.00027173,2]
[390697128,1760124644795,-171.02368327,0.00027173,2]
[390697130,1760124644804,-531.01629028,0.00027173,2]
[390697132,1760124644813,-500.12657935,0.00027173,2]
[390697134,1760124644822,-500.0,0.00027173,2]
[390697136,1760124644832,-500.0,0.00027173,2]
[390697138,1760124644841,-500.0,0.00027173,2]
[390697140,1760124644850,-500.0,0.00027173,2]
[390697142,1760124644859,-319.0,0.00027251,2]
[390697144,1760124644868,-151.0,0.00027258,7]
[390697145,1760124644877,-151.0,0.00027258,7]
[390697147,1760124644886,-151.0,0.00027258,7]
[390697149,1760124644896,-151.0,0.00027258,7]
[390697151,1760124644906,-151.0,0.00027258,7]
[390697154,1760124644917,-151.0,0.00027258,7]
[390697156,1760124644927,-151.0,0.00027258,7]
[390697157,1760124644936,-276710.553018,0.00027258,2]
[390697159,1760124644946,-9135.69390941,0.00027258,2]
[390697161,1760124644955,-500.0,0.00027273,2]
[390697163,1760124644964,-411.0,0.00027345,2]
[390697165,1760124644976,-454.26,0.00027358,3]
[390697167,1760124644985,-226.36,0.00027367,2]
[390697169,1760124644995,-500.0,0.00027373,2]
[390697171,1760124645004,-500.0,0.00027373,2]
[390697173,1760124645013,-500.0,0.00027373,2]
[390697175,1760124645022,-245.81687951,0.00027373,2]
[390697177,1760124645031,-500.0,0.00027373,2]
[390697179,1760124645041,-500.0,0.00027373,2]
[390697181,1760124645049,-500.0,0.00027373,2]
[390697183,1760124645058,-276710.553018,0.00027387,2]
[390697185,1760124645068,-9135.69390941,0.00027387,2]
[390697187,1760124645077,-151.0,0.00027387,7]
[390697189,1760124645086,-151.0,0.00027387,7]
[390697191,1760124645095,-151.0,0.00027387,7]
[390697193,1760124645104,-151.0,0.00027387,7]
[390697195,1760124645113,-151.0,0.00027387,7]
[390697197,1760124645122,-151.0,0.00027387,7]
[390697199,1760124645131,-198.25310071,0.0002739,2]
[390697201,1760124645140,-162.18406984,0.0002739,7]
[390697203,1760124645150,-150.0,0.0002739,2]
[390697205,1760124645160,-500.0,0.00027397,2]
[390697207,1760124645169,-300.0,0.00027397,2]
[390697209,1760124645178,-300.0,0.00027397,2]
[390697211,1760124645187,-1000.0,0.00027397,2]
[390697213,1760124645197,-500.0,0.00027397,60]
[390697215,1760124645207,-500.0,0.00027397,60]
[390697217,1760124645216,-500.0,0.00027397,60]
[390697219,1760124645228,-1000.0,0.00027397,2]
[390697221,1760124645237,-1000.0,0.00027397,2]
[390697223,1760124645246,-500.0,0.00027397,2]
[390697225,1760124645255,-500.0,0.00027397,2]
[390697227,1760124645264,-500.0,0.00027397,2]
[390697228,1760124645274,-500.0,0.00027397,2]
[390697230,1760124645283,-500.0,0.00027397,2]
[390697232,1760124645293,-500.0,0.00027397,2]
[390697234,1760124645303,-500.0,0.00027397,2]
[390697236,1760124645314,-500.0,0.00027397,2]
[390697239,1760124645328,-409.69387175,0.00027397,2]
[390697241,1760124645338,-500.0,0.00027397,60]
[390697242,1760124645347,-500.0,0.00027397,60]
[390697244,1760124645358,-500.0,0.00027397,60]
[390697246,1760124645367,-500.0,0.00027397,60]
[390697248,1760124645377,-500.0,0.00027397,60]
[390697250,1760124645387,-500.0,0.00027397,60]
[390697252,1760124645397,-500.0,0.00027397,60]
[390697254,1760124645407,-500.0,0.00027397,60]
[390697257,1760124645417,-500.0,0.00027397,2]
[390697260,1760124645426,-500.0,0.00027397,2]
[390697263,1760124645436,-500.0,0.00027397,2]
[390697266,1760124645445,-500.0,0.00027397,2]
[390697268,1760124645455,-471.12464822,0.00027397,2]
[390697270,1760124645464,-500.0,0.00027397,60]
[390697273,1760124645477,-500.0,0.00027397,60]
[390697275,1760124645486,-500.0,0.00027397,60]
[390697277,1760124645496,-500.0,0.00027397,60]
[390697279,1760124645505,-500.0,0.00027397,60]
[390697281,1760124645514,-188.96159359,0.00027397,60]
[390697283,1760124645523,-154.68155529,0.00027397,2]
[390697285,1760124645532,-161.41205258,0.00027397,2]
[390697288,1760124645541,-150.0,0.00027397,5]
[390697290,1760124645550,-151.0,0.000274,18]
[390697292,1760124645560,-168.0,0.00027449,2]
[390697294,1760124645570,-500.0,0.00027477,60]
[390697297,1760124645580,-500.0,0.00027477,60]
[390697299,1760124645589,-500.0,0.00027488,60]
[390697301,1760124645598,-500.0,0.00027488,60]
[390697304,1760124645607,-588.07192429,0.00027488,2]
[390697306,1760124645616,-500.0,0.00027488,60]
[390697308,1760124645625,-500.0,0.00027488,60]
[390697310,1760124645634,-500.0,0.00027488,60]
[390697312,1760124645643,-500.0,0.00027488,60]
[390697314,1760124645652,-500.0,0.00027488,60]
[390697316,1760124645662,-500.0,0.00027488,60]
[390697318,1760124645670,-500.0,0.00027488,60]
[390697320,1760124645679,-383.88,0.00027497,60]
[390697322,1760124645689,-459.8,0.000275,30]
[390697324,1760124645698,-1000.0,0.00027521,5]
[390697326,1760124645712,-500.0,0.00027521,5]
[390697328,1760124645725,-500.0,0.00027521,5]
[390697330,1760124645733,-1000.0,0.00027521,5]
[390697331,1760124645742,-394.550624,0.00027534,30]
[390697333,1760124645753,-9135.69390941,0.00027585,2]
[390697335,1760124645762,-1000.0,0.00027661,5]
[390697337,1760124645771,-18603.8837,0.00027681,2]
[390697339,1760124645781,-3000.0,0.00027681,2]
[390697341,1760124645790,-268.07637775,0.00027681,2]
[390697343,1760124645799,-2611.44225185,0.00027681,2]
[390697345,1760124645808,-1000.0,0.00027681,2]
[390697347,1760124645818,-1000.0,0.00027681,2]
[390697349,1760124645827,-870.24847633,0.00027681,2]
[390697351,1760124645837,-500.0,0.00027681,2]
[390697353,1760124645848,-500.0,0.00027681,2]
[390697355,1760124645856,-500.0,0.00027681,2]
[390697357,1760124645865,-151.0,0.00027681,2]
[390697359,1760124645874,-500.0,0.00027681,2]
[390697361,1760124645884,-151.0,0.00027681,2]
[390697363,1760124645898,-500.0,0.00027681,2]
[390697364,1760124645908,-151.0,0.00027681,2]
[390697366,1760124645917,-500.0,0.00027681,2]
[390697368,1760124645927,-155.12006696,0.00027681,2]
[390697370,1760124645936,-500.0,0.00027681,2]
[390697372,1760124645945,-151.24634167,0.00027681,2]
[390697389,1760124646102,-500.0,0.00027681,2]
[390697391,1760124646112,-500.0,0.00027681,2]
[390697393,1760124646122,-500.0,0.00027681,2]
[390697395,1760124646133,-500.0,0.00027681,2]
[390697397,1760124646142,-500.0,0.00027681,2]
[390697399,1760124646152,-300.0,0.00027721,5]
[390697400,1760124646163,-500.0,0.00027721,5]
[390697402,1760124646173,-500.88756936,0.00027721,5]
[390697404,1760124646183,-527.19796773,0.00027721,5]
[390697406,1760124646192,-1000.0,0.00027721,5]
[390697408,1760124646201,-1000.0,0.00027721,5]
[390697410,1760124646211,-500.47437712,0.00027721,5]
[390697412,1760124646220,-500.41742822,0.00027721,5]
[390697414,1760124646234,-500.0,0.00027721,5]
[390697416,1760124646244,-1000.0,0.00027721,5]
[390697418,1760124646253,-500.0,0.00027721,5]
[390697420,1760124646262,-177.87452253,0.00027721,5]
[390697422,1760124646271,-500.68375299,0.00027721,5]
[390697424,1760124646280,-500.84748506,0.00027721,5]
[390697426,1760124646290,-500.0,0.00027721,5]
[390697428,1760124646300,-500.38039849,0.00027721,5]
[390697431,1760124646309,-379.3851482,0.00027726,30]
[390697433,1760124646319,-297.8284942,0.00027726,30]
[390697436,1760124646328,-166.1894609,0.00027726,30]
[390697439,1760124646338,-153.0,0.00027726,30]
[390697441,1760124646347,-153.0,0.00027726,30]
[390697443,1760124646356,-411.0,0.00027763,2]
[390697447,1760124646366,-411.0,0.00027765,2]
[390697449,1760124646375,-588.2885567,0.00027808,30]
[390697452,1760124646384,-321.7216683,0.00027808,30]
[390697455,1760124646394,-467.3945575,0.00027808,30]
[390697457,1760124646403,-612.362703,0.00027808,30]
[390697459,1760124646413,-28736.67362213,0.00027853,3]
[390697461,1760124646423,-9135.69390941,0.00027911,2]
[390697463,1760124646433,-1000.0,0.00027921,5]
[390697465,1760124646443,-1000.0,0.00027921,5]
[390697467,1760124646452,-1000.0,0.00027921,5]
[390697469,1760124646462,-1000.0,0.00027921,5]
[390697471,1760124646472,-376.73513415,0.00027921,5]
[390697473,1760124646485,-250.0,0.00027945,5]
[390697475,1760124646495,-151.0,0.00027953,30]
[390697477,1760124646504,-151.0,0.00027953,30]
[390697479,1760124646513,-151.0,0.00027953,30]
[390697481,1760124646523,-151.0,0.00027953,30]
[390697483,1760124646533,-151.0,0.00027953,30]
[390697484,1760124646542,-151.0,0.00027953,30]
[390697487,1760124646552,-151.0,0.00027953,30]
[390697488,1760124646560,-151.0,0.00027953,30]
[390697490,1760124646569,-151.0,0.00027953,30]
[390697492,1760124646579,-151.0,0.00027953,30]
[390697494,1760124646588,-151.0,0.00027953,30]
[390697496,1760124646598,-151.638751,0.00027953,30]
[390697497,1760124646607,-151.0,0.00027953,30]
[390697499,1760124646616,-151.0,0.00027953,30]
[390697501,1760124646625,-151.0,0.00027953,30]
[390697503,1760124646635,-226.1552,0.00027962,2]
[390697505,1760124646644,-151.0,0.00027962,30]
[390697507,1760124646654,-151.0,0.00027962,30]
[390697509,1760124646663,-151.0,0.00027962,30]
[390697511,1760124646672,-151.0,0.00027962,30]
[390697513,1760124646682,-360.21253829,0.00027973,5]
[390697515,1760124646690,-500.0,0.00027973,5]
[390697517,1760124646700,-500.0,0.00027973,5]
[390697519,1760124646709,-1500.0,0.00028068,5]
[390697521,1760124646722,-1500.0,0.00028068,5]
[390697523,1760124646735,-411.0,0.00028136,7]
[390697525,1760124646744,-298.843734,0.00028143,30]
[390697527,1760124646754,-298.843734,0.00028143,30]
[390697529,1760124646763,-298.843734,0.00028143,30]
[390697531,1760124646773,-298.843734,0.00028143,30]
[390697533,1760124646782,-1564.290886,0.00028143,30]
[390697535,1760124646793,-1564.290886,0.00028143,30]
[390697537,1760124646803,-224.564696,0.00028143,30]
[390697539,1760124646813,-1564.290886,0.00028143,30]
[390697541,1760124646822,-1564.290886,0.00028143,30]
[390697543,1760124646831,-151.0,0.00028143,15]
[390697545,1760124646840,-294.580257,0.00028143,30]
[390697547,1760124646849,-294.580257,0.00028143,30]
[390697549,1760124646857,-294.580257,0.00028143,30]
[390697551,1760124646867,-294.580257,0.00028143,30]
[390697552,1760124646876,-151.0,0.00028143,30]
[390697554,1760124646885,-151.0,0.00028143,30]
[390697556,1760124646894,-151.0,0.00028143,30]
[390697558,1760124646903,-151.0,0.00028143,30]
[390697560,1760124646912,-200.28832901,0.0002815,5]
[390697562,1760124646921,-600.0,0.00028173,7]
[390697564,1760124646931,-151.0,0.00028179,30]
[390697566,1760124646940,-151.0,0.00028179,30]
[390697568,1760124646949,-151.0,0.00028179,30]
[390697570,1760124646958,-153.793361,0.00028179,30]
[390697572,1760124646967,-151.0,0.00028179,30]
[390697574,1760124646981,-9135.69390941,0.00028179,2]
[390697576,1760124646991,-5251.82807445,0.00028229,2]
[390697578,1760124647000,-3000.0,0.00028229,2]
[390697580,1760124647010,-151.0,0.00028234,30]
[390697582,1760124647020,-9135.69390941,0.00028234,2]
[390697584,1760124647029,-151.0,0.00028244,30]
[390697586,1760124647039,-151.0,0.00028244,30]
[390697587,1760124647048,-151.0,0.00028244,30]
[390697589,1760124647058,-220.214233,0.00028244,30]
[390697591,1760124647067,-151.0,0.00028244,30]
[390697593,1760124647077,-151.0,0.00028244,30]
[390697595,1760124647086,-301.99999998,0.00028244,30]
[390697597,1760124647095,-151.0,0.00028244,30]
[390697599,1760124647105,-151.0,0.00028244,30]
[390697601,1760124647114,-151.0,0.00028244,30]
[390697603,1760124647123,-151.0,0.00028244,30]
[390697605,1760124647131,-151.0,0.00028244,30]
[390697607,1760124647141,-151.0,0.00028244,30]
[390697609,1760124647150,-151.659666,0.00028244,30]
[390697611,1760124647159,-500.0,0.0002826,5]
[390697613,1760124647168,-378.3000009,0.0002826,5]
[390697615,1760124647177,-450.0,0.00028268,5]
[390697617,1760124647186,-419.69373712,0.00028268,5]
[390697619,1760124647196,-151.0,0.0002827,30]
[390697621,1760124647205,-151.0,0.0002827,30]
[390697623,1760124647214,-151.0,0.0002827,30]
[390697625,1760124647223,-151.0,0.0002827,30]
[390697627,1760124647238,-151.0,0.0002827,30]
[390697629,1760124647247,-151.0,0.0002827,30]
[390697631,1760124647256,-151.0,0.0002827,30]
[390697633,1760124647265,-151.0,0.0002827,30]
[390697635,1760124647274,-151.0,0.0002827,30]
[390697637,1760124647284,-151.0,0.0002827,30]
[390697639,1760124647293,-160.0,0.0002827,30]
[390697641,1760124647302,-151.0,0.0002827,30]
[390697643,1760124647311,-151.0,0.0002827,30]
[390697645,1760124647320,-151.0,0.0002827,30]
[390697647,1760124647329,-151.0,0.0002827,30]
[390697649,1760124647338,-151.0,0.0002827,30]
[390697651,1760124647347,-151.0,0.0002827,30]
[390697653,1760124647356,-151.0,0.0002827,30]
[390697655,1760124647367,-151.0,0.0002827,30]
[390697657,1760124647376,-183.095485,0.0002827,30]
[390697659,1760124647387,-151.0,0.0002827,30]
[390697661,1760124647397,-151.0,0.0002827,30]
[390697663,1760124647406,-151.0,0.0002827,30]
[390697665,1760124647415,-153.899132,0.0002827,30]
[390697667,1760124647425,-151.0,0.0002827,30]
[390697669,1760124647434,-500.0,0.00028273,5]
[390697671,1760124647443,-500.0,0.000283,5]
[390697673,1760124647452,-411.0,0.00028347,2]
[390697675,1760124647462,-411.0,0.00028356,2]
[390697677,1760124647471,-789.5280749,0.00028384,30]
[390697679,1760124647484,-1434.4668512,0.0002839,2]
[390697680,1760124647493,-1128.0,0.00028433,2]
[390697682,1760124647503,-189.6925741,0.00028438,30]
[390697684,1760124647512,-189.6925741,0.00028438,30]
[390697686,1760124647520,-674.49713696,0.0002846,2]
[390697688,1760124647530,-2695.2905593,0.0002846,2]
[390697690,1760124647539,-639.99759608,0.0002846,2]
[390697692,1760124647549,-1000.0,0.00028468,5]
[390697694,1760124647558,-1500.0,0.00028468,5]
[390697696,1760124647567,-350.0,0.00028493,5]
[390697698,1760124647578,-2000.0,0.000285,2]
[390697700,1760124647587,-350.0,0.000285,10]
[390697702,1760124647596,-59147.85656117,0.000285,7]
[390697704,1760124647605,-151.0,0.0002851,30]
[390697706,1760124647614,-151.0,0.0002851,30]
[390697708,1760124647623,-151.0,0.0002851,30]
[390697710,1760124647632,-9135.69390941,0.00028511,2]
[390697712,1760124647642,-162.8446322,0.00028521,30]
[390697714,1760124647652,-297.8284942,0.00028521,30]
[390697716,1760124647661,-153.0,0.00028521,30]
[390697718,1760124647670,-297.8284942,0.00028521,30]
[390697720,1760124647679,-162.8446322,0.00028521,30]
[390697722,1760124647688,-297.8284942,0.00028521,30]
[390697724,1760124647697,-162.8446322,0.00028521,30]
[390697726,1760124647713,-153.0,0.00028521,30]
[390697728,1760124647722,-297.8284942,0.00028521,30]
[390697730,1760124647736,-162.8446322,0.00028521,30]
[390697732,1760124647746,-295.2217322,0.00028521,30]
[390697734,1760124647755,-153.0,0.00028521,30]
[390697736,1760124647765,-162.8446322,0.00028521,30]
[390697738,1760124647774,-162.8446322,0.00028521,30]
[390697740,1760124647783,-162.8446322,0.00028521,30]
[390697742,1760124647792,-153.0,0.00028521,30]
[390697744,1760124647802,-162.8446322,0.00028521,30]
[390697746,1760124647811,-162.8446322,0.00028521,30]
[390697748,1760124647819,-153.0,0.00028521,30]
[390697750,1760124647828,-159.9173406,0.00028521,30]
[390697752,1760124647837,-1000.0,0.00028521,5]
[390697754,1760124647847,-500.0,0.00028521,5]
[390697756,1760124647856,-298.03512572,0.00028548,30]
[390697758,1760124647865,-500.0,0.0002856,5]
[390697760,1760124647874,-500.0,0.0002856,5]
[390697762,1760124647883,-500.0,0.0002856,20]
[390697764,1760124647892,-500.0,0.0002856,5]
[390697766,1760124647902,-500.0,0.0002856,20]
[390697768,1760124647911,-500.0,0.0002856,5]
[390697770,1760124647920,-500.0,0.0002856,5]
[390697772,1760124647929,-500.0,0.0002856,5]
[390697774,1760124647938,-500.0,0.0002856,20]
[390697776,1760124647947,-1128.0,0.00028591,7]
[390697778,1760124647957,-501.46186656,0.00028616,5]
[390697780,1760124647966,-2000.0,0.00028616,5]
[390697782,1760124647981,-3467.78,0.00028626,2]
[390697784,1760124647990,-548.0,0.00028642,2]
[390697786,1760124647999,-300.0,0.000287,2]
[390697788,1760124648009,-1000.0,0.00028767,30]
[390697790,1760124648018,-2007.0,0.00028767,2]
[390697792,1760124648028,-2819.74286723,0.000288,7]
[390697794,1760124648037,-600.0,0.00028816,5]
[390697796,1760124648046,-500.0,0.00028821,5]
[390697798,1760124648055,-1000.0,0.00028848,5]
[390697799,1760124648064,-151.0,0.00028848,30]
[390697801,1760124648073,-151.0,0.00028848,30]
[390697803,1760124648082,-151.0,0.00028848,30]
[390697805,1760124648092,-151.0,0.00028848,30]
[390697807,1760124648100,-298.03512572,0.00028949,3]
[390697809,1760124648109,-1163.506464,0.0002898,5]
[390697811,1760124648118,-600.0,0.00028995,7]
[390697813,1760124648127,-1050.27,0.00029,2]
[390697815,1760124648137,-1330.381352,0.00029,5]
[390697817,1760124648146,-1000.0,0.00029,5]
[390697819,1760124648157,-804.7610492,0.00029016,5]
[390697821,1760124648166,-160.0,0.0002904,3]
[390697823,1760124648175,-160.0,0.0002904,5]
[390697825,1760124648184,-500.0,0.0002904,11]
[390697827,1760124648193,-500.0,0.0002904,11]
[390697829,1760124648202,-450.0,0.00029041,5]
[390697831,1760124648211,-1611.77763852,0.00029068,5]
[390697833,1760124648220,-151.0,0.00029069,30]
[390697835,1760124648231,-151.0,0.00029069,30]
[390697837,1760124648240,-9135.69390941,0.00029164,2]
[390697839,1760124648249,-2500.0,0.00029164,5]
[390697841,1760124648258,-151.0,0.00029173,30]
[390697843,1760124648267,-151.0,0.00029173,30]
[390697845,1760124648277,-1050.27,0.00029174,2]
[390697847,1760124648286,-411.0,0.00029186,7]
[390697849,1760124648296,-153.208782,0.00029205,30]
[390697851,1760124648305,-35197.85810624,0.0002921,2]
[390697853,1760124648314,-151.0,0.0002921,30]
[390697855,1760124648324,-151.0,0.0002921,30]
[390697857,1760124648333,-151.0,0.00029258,10]
[390697859,1760124648343,-151.0,0.00029258,10]
[390697861,1760124648352,-151.0,0.00029258,10]
[390697863,1760124648361,-500.0,0.00029258,10]
[390697865,1760124648370,-151.0,0.00029258,10]
[390697867,1760124648379,-151.0,0.00029258,10]
[390697869,1760124648387,-198.0,0.00029258,10]
[390697871,1760124648396,-151.0,0.00029258,10]
[390697873,1760124648406,-151.0,0.00029258,10]
[390697875,1760124648415,-151.0,0.00029258,30]
[390697877,1760124648424,-151.0,0.00029258,30]
[390697879,1760124648434,-151.0,0.00029258,10]
[390697881,1760124648443,-151.0,0.00029258,30]
[390697883,1760124648452,-151.0,0.00029258,30]
[390697885,1760124648462,-151.0,0.00029258,30]
[390697887,1760124648471,-151.0,0.00029258,30]
[390697889,1760124648483,-151.0,0.00029258,30]
[390697891,1760124648493,-298.843734,0.00029258,30]
[390697893,1760124648502,-298.843734,0.00029258,30]
[390697895,1760124648512,-298.843734,0.00029258,30]
[390697897,1760124648521,-298.843734,0.00029258,30]
[390697899,1760124648530,-1564.290886,0.00029258,30]
[390697901,1760124648540,-1564.290886,0.00029258,30]
[390697902,1760124648549,-1564.290886,0.00029258,30]
[390697904,1760124648559,-1564.290886,0.00029258,30]
[390697906,1760124648569,-151.0,0.00029258,15]
[390697908,1760124648579,-532.0,0.00029258,10]
[390697910,1760124648588,-151.0,0.00029258,10]
[390697912,1760124648598,-294.580257,0.00029258,30]
[390697914,1760124648607,-294.580257,0.00029258,30]
[390697916,1760124648616,-294.580257,0.00029258,30]
[390697918,1760124648625,-294.580257,0.00029258,30]